bitfinex-derivatives/quotes_SOLF0:USTF0_20251002
["timestamp","ask_amount","ask_price","bid_price","bid_amount"]
[1759425172571,1.82713575,228.35,228.3,7.37010668]
[1759425172774,1.82713575,228.35,228.31,7.34]
[1759425173673,1.82713575,228.35,228.31,3.9394]
[1759425173866,1.82713575,228.35,228.32,7.34]
[1759425174273,108.46,228.37,228.32,11.2791]
[1759425174472,1.82713575,228.36,228.32,11.2791]
[1759425174666,108.46,228.37,228.33,3.939]
[1759425174975,110.26713575,228.39,228.34,7.34]
[1759425175371,110.26713575,228.39,228.31,3.9394]
[1759425175372,1.82713575,228.37,228.31,3.9394]
[1759425176377,1.82713575,228.37,228.32,0.02838867]
[1759425177974,123.3313664,228.39,228.33,7.34]
[1759425178380,123.3313664,228.39,228.34,11.2788]
[1759425178881,123.3313664,228.39,228.35,7.34]
[1759425179284,14.9113664,228.39,228.35,7.34]
[1759425179479,14.9113664,228.39,228.32,0.02838867]
[1759425179877,13.08423065,228.39,228.32,0.02838867]
[1759425180079,1.82713575,228.38,228.32,0.02838867]
[1759425181682,1.82713575,228.38,228.32,3.96748867]
[1759425183380,3.04727269,228.39,228.33,3.939]
[1759425183583,3.04727269,228.39,228.33,7.21]
[1759425183781,3.04727269,228.39,228.34,61.2726]
[1759425183990,3.04727269,228.49,228.39,7.21]
[1759425184283,1.82713575,228.47,228.39,7.21]
[1759425184586,3.04727269,228.48,228.42,9.03713575]
[1759425184883,48.46,228.54,228.46,7.21]
[1759425185188,3.05010626,228.53,228.46,7.21]
[1759425185485,16.16698369,228.53,228.46,7.21]
[1759425185684,3.05010626,228.52,228.46,7.21]
[1759425185889,3.05010626,228.53,228.46,7.21]
[1759425186090,3.05010626,228.52,228.44,1.82713575]
[1759425186287,3.9358,228.52,228.44,1.82713575]
[1759425186490,6.98590626,228.52,228.47,0.03093405]
[1759425186685,3.9358,228.52,228.47,0.03093405]
[1759425186988,6.98590626,228.52,228.47,0.03093405]
[1759425187191,3.9358,228.52,228.47,0.03093405]
[1759425187390,6.98590626,228.52,228.47,0.03093405]
[1759425187590,3.05010626,228.51,228.47,0.03093405]
[1759425188096,3.05010626,228.5,228.47,0.03093405]
[1759425188291,3.9363,228.5,228.47,0.03093405]
[1759425188792,6.98640626,228.5,228.47,0.03093405]
[1759425189090,3.05010626,228.49,228.47,0.03093405]
[1759425189882,3.05010626,228.5,228.47,0.03093405]
[1759425190087,3.05010626,228.49,228.47,0.03093405]
[1759425190295,3.05010626,228.5,228.47,0.03093405]
[1759425190484,3.05010626,228.49,228.47,0.03093405]
[1759425190788,108.36,228.51,228.47,0.03093405]
[1759425190789,3.05010626,228.48,228.47,0.03093405]
[1759425190990,3.05010626,228.5,228.47,0.03093405]
[1759425191293,6.98640626,228.49,228.47,0.03093405]
[1759425191492,3.05010626,228.48,228.47,0.03093405]
[1759425192491,111.39010626,228.48,228.47,0.03093405]
[1759425193086,3.05010626,228.48,228.47,0.03093405]
[1759425193285,3.936,228.52,228.47,0.03093405]
[1759425193590,111.3958311,228.51,228.47,7.24093405]
[1759425193895,3.0558311,228.5,228.47,0.03093405]
[1759425194288,3.0558311,228.5,228.47,1.8580698]
[1759425194489,3.9363,228.49,228.47,1.8580698]
[1759425195785,6.9921311,228.49,228.47,1.8580698]
[1759425196090,3.9363,228.49,228.47,1.8580698]
[1759425196291,6.9921311,228.49,228.47,0.03093405]
[1759425196492,3.0558311,228.5,228.47,0.03093405]
[1759425196694,3.0558311,228.49,228.47,0.03093405]
[1759425196888,3.0558311,228.5,228.47,0.03093405]
[1759425197594,3.0558311,228.49,228.47,0.03093405]
[1759425197796,3.0558311,228.5,228.47,0.03093405]
[1759425197996,3.0558311,228.49,228.47,0.03093405]
[1759425198196,3.0558311,228.48,228.47,0.03093405]
[1759425198396,3.0558311,228.5,228.47,0.03093405]
[1759425198596,3.0558311,228.49,228.47,0.03093405]
[1759425198799,108.32,228.49,228.47,7.24093405]
[1759425199090,108.32,228.5,228.47,7.24093405]
[1759425199286,3.06110478,228.49,228.47,7.24093405]
[1759425199693,3.06110478,228.49,228.47,0.03093405]
[1759425201590,6.99760478,228.48,228.47,0.03093405]
[1759425201792,3.06110478,228.48,228.39,1.82713575]
[1759425201989,3.06110478,228.47,228.39,1.82713575]
[1759425202186,111.36110478,228.46,228.39,1.82713575]
[1759425202495,3.06110478,228.45,228.39,1.82713575]
[1759425202695,3.06110478,228.44,228.4,7.21]
[1759425202891,3.06110478,228.43,228.4,7.21]
[1759425203093,3.06110478,228.45,228.4,7.21]
[1759425203390,0.02818308,228.44,228.39,9.03713575]
[1759425203598,0.02818308,228.44,228.4,7.57]
[1759425204194,3.08928786,228.44,228.39,1.82713575]
[1759425204394,3.06110478,228.43,228.36,7.57]
[1759425204599,0.02818308,228.44,228.37,1.82713575]
[1759425204897,3.08928786,228.44,228.37,1.82713575]
[1759425205095,0.02818308,228.44,228.37,1.82713575]
[1759425205294,3.08928786,228.44,228.37,1.82713575]
[1759425205496,0.02818308,228.44,228.39,1.82713575]
[1759425205692,3.08928786,228.44,228.39,9.39713575]
[1759425205996,0.02818308,228.44,228.39,9.39713575]
[1759425206894,3.08928786,228.44,228.39,1.82713575]
[1759425207401,0.02818308,228.44,228.4,7.57]
[1759425207602,108.32818308,228.44,228.4,7.57]
[1759425208594,0.02818308,228.44,228.41,1.82713575]
[1759425208901,0.02818308,228.44,228.42,7.57]
[1759425209599,0.02818308,228.44,228.41,1.82713575]
[1759425209600,0.02818308,228.44,228.43,9.39713575]
[1759425210101,0.02818308,228.44,228.42,9.39713575]
[1759425210900,0.02818308,228.44,228.43,7.57]
[1759425211900,0.02818308,228.44,228.43,9.39713575]
[1759425215198,12.91168915,228.54,228.47,7.47]
[1759425215403,62.32,228.57,228.48,1.82713575]
[1759425215597,3.06955844,228.56,228.48,1.82713575]
[1759425215797,3.9354,228.55,228.48,1.82713575]
[1759425216006,16.50531183,228.55,228.48,1.82713575]
[1759425216204,108.28,228.56,228.48,1.82713575]
[1759425216205,3.06955844,228.54,228.48,1.82713575]
[1759425216406,3.06955844,228.55,228.48,1.82713575]
[1759425216800,3.06955844,228.55,228.49,0.03049256]
[1759425217201,7.00495844,228.55,228.49,0.03049256]
[1759425217404,7.00495844,228.55,228.49,1.85762831]
[1759425217696,3.06955844,228.55,228.49,1.85762831]
[1759425218406,16.09216634,228.55,228.49,0.03049256]
[1759425218606,3.06955844,228.54,228.49,7.50049256]
[1759425218801,111.32955844,228.54,228.49,7.50049256]
[1759425219004,108.26,228.54,228.49,0.03049256]
[1759425219607,3.9359,228.52,228.49,0.03049256]
[1759425221212,3.9361,228.51,228.49,0.03049256]
[1759425222006,5.76323575,228.51,228.49,0.03049256]
[1759425222804,8.83428136,228.51,228.49,0.03049256]
[1759425222999,5.76323575,228.51,228.49,0.03049256]
[1759425223208,3.07104561,228.5,228.49,0.03049256]
[1759425223608,3.9361,228.51,228.49,0.03049256]
[1759425223806,5.76323575,228.51,228.49,0.03049256]
[1759425224101,111.31104561,228.5,228.49,0.03049256]
[1759425224909,3.07104561,228.5,228.49,0.03049256]
[1759425225111,111.31104561,228.5,228.49,0.03049256]
[1759425226911,3.07104561,228.5,228.49,0.03049256]
[1759425227106,111.31104561,228.5,228.49,0.03049256]
[1759425227302,111.31104561,228.5,228.49,7.50049256]
[1759425227911,108.24,228.54,228.5,7.47]
[1759425228111,3.09286217,228.53,228.49,0.03049256]
[1759425228305,108.24,228.54,228.49,0.03049256]
[1759425228306,3.09286217,228.52,228.5,7.47]
[1759425228504,3.09286217,228.51,228.5,7.47]
[1759425229910,3.09286217,228.53,228.5,7.47]
[1759425230115,3.09286217,228.52,228.5,7.47]
[1759425230312,108.24,228.54,228.5,7.47]
[1759425230512,3.09348265,228.53,228.5,7.47]
[1759425230708,3.09348265,228.52,228.49,3.96659256]
[1759425230913,108.24,228.54,228.5,7.47]
[1759425231116,3.0934378,228.53,228.5,7.47]
[1759425231316,3.0934378,228.52,228.5,7.47]
[1759425231618,108.22,228.54,228.5,7.47]
[1759425231817,3.09304276,228.53,228.5,7.47]
[1759425232017,3.9352,228.56,228.5,7.47]
[1759425232218,3.09297406,228.55,228.5,7.47]
[1759425232416,3.09297406,228.54,228.5,7.47]
[1759425232618,3.09297406,228.53,228.5,7.47]
[1759425232816,100.67168923,228.56,228.5,7.47]
[1759425233017,3.09254852,228.55,228.5,7.47]
[1759425233218,3.09254852,228.54,228.5,7.47]
[1759425233414,3.09254852,228.53,228.5,7.47]
[1759425233620,100.67168923,228.56,228.5,7.47]
[1759425233819,3.09219638,228.55,228.5,7.47]
[1759425234120,3.09219638,228.54,228.5,7.47]
[1759425234323,3.09219638,228.53,228.49,0.03049256]
[1759425234622,3.09219638,228.52,228.49,0.03049256]
[1759425234830,115.24819638,228.51,228.49,0.03049256]
[1759425235121,3.09219638,228.5,228.49,0.03049256]
[1759425235825,111.29219638,228.5,228.49,0.03049256]
[1759425236524,108.2,228.51,228.49,0.03049256]
[1759425236721,3.09212459,228.5,228.49,7.50049256]
[1759425236918,56.54,228.51,228.49,0.03049256]
[1759425237118,56.54,228.52,228.49,0.03049256]
[1759425237318,3.09219847,228.51,228.49,0.03049256]
[1759425237519,3.09223555,228.5,228.49,0.03049256]
[1759425239121,111.29223555,228.5,228.49,0.03049256]
[1759425239322,108.2,228.54,228.49,0.03049256]
[1759425239521,3.09226796,228.53,228.49,0.03049256]
[1759425239721,3.09226796,228.52,228.49,0.03049256]
[1759425239927,108.2,228.54,228.49,0.03049256]
[1759425240127,3.09211971,228.53,228.49,0.03049256]
[1759425240326,3.09211971,228.52,228.5,7.47]
[1759425240524,4.85788949,228.6,228.5,7.47]
[1759425240729,3.9351,228.56,228.5,7.47]
[1759425240918,3.09193888,228.55,228.49,0.03049256]
[1759425241123,4.85788949,228.61,228.49,0.03049256]
[1759425241124,3.09193888,228.54,228.49,2.87981521]
[1759425241426,28.48,228.59,228.51,7.47]
[1759425241623,3.09193888,228.58,228.51,7.47]
[1759425241828,3.09193888,228.57,228.51,7.47]
[1759425242022,3.09193888,228.56,228.5,3.9359]
[1759425242224,28.48,228.59,228.5,3.9359]
[1759425242424,3.09028965,228.58,228.51,7.12]
[1759425242723,3.09028965,228.57,228.51,7.12]
[1759425242924,3.09028965,228.56,228.5,3.9359]
[1759425243129,28.48,228.59,228.52,7.12]
[1759425243425,3.08979937,228.58,228.52,7.12]
[1759425243626,3.08979937,228.57,228.52,7.12]
[1759425243826,28.48,228.59,228.52,7.12]
[1759425244027,3.08962314,228.58,228.52,7.12]
[1759425244227,3.08962314,228.57,228.51,3.96941277]
[1759425244429,3.08962314,228.58,228.52,7.12]
[1759425244625,3.08962314,228.57,228.51,3.96941277]
[1759425244826,3.08962314,228.58,228.52,7.12]
[1759425245029,3.08962314,228.57,228.52,7.12]
[1759425245335,3.08962314,228.58,228.52,7.12]
[1759425245522,3.08962314,228.57,228.52,7.12]
[1759425245728,3.08962314,228.58,228.52,7.12]
[1759425246028,3.08962314,228.57,228.52,7.12]
[1759425246225,3.08962314,228.58,228.52,7.12]
[1759425246426,3.08962314,228.57,228.51,0.03371277]
[1759425246632,3.08962314,228.58,228.52,7.12]
[1759425246824,3.08962314,228.57,228.52,7.12]
[1759425247024,13.19054127,228.64,228.53,7.12]
[1759425247227,3.08773768,228.63,228.55,2.84932265]
[1759425247424,3.08773768,228.62,228.56,7.12]
[1759425247625,169.3527,228.71,228.59,7.12]
[1759425247829,3.08656046,228.7,228.59,7.12]
[1759425248031,4.85788949,228.73,228.59,7.12]
[1759425248032,3.08656046,228.69,228.59,7.12]
[1759425248329,3.08656046,228.68,228.59,7.12]
[1759425248527,3.08656046,228.67,228.6,2.84932265]
[1759425248727,3.08656046,228.68,228.63,7.15352622]
[1759425248930,3.08656046,228.67,228.63,7.15352622]
[1759425249331,3.08656046,228.68,228.63,7.15352622]
[1759425249527,7.01986046,228.67,228.63,0.03352622]
[1759425249733,3.9333,228.67,228.63,0.03352622]
[1759425250135,7.01986046,228.67,228.63,0.03352622]
[1759425250330,3.9333,228.67,228.63,0.03352622]
[1759425250932,3.08656046,228.68,228.63,7.15352622]
[1759425252033,3.08656046,228.68,228.64,7.12]
[1759425252230,16.22367223,228.68,228.64,7.12]
[1759425252434,108.16,228.69,228.64,7.12]
[1759425252636,3.08121997,228.68,228.64,7.12]
[1759425253029,112.073,228.69,228.64,7.12]
[1759425253539,3.933,228.69,228.64,7.12]
[1759425253837,7.01351949,228.69,228.63,7.15352622]
[1759425254033,16.30881071,228.69,228.63,0.03352622]
[1759425254231,3.08051949,228.68,228.63,0.03352622]
[1759425254433,3.08051949,228.69,228.63,0.03352622]
[1759425254739,3.9335,228.65,228.63,0.03352622]
[1759425256741,112.0535,228.65,228.63,0.03352622]
[1759425257134,3.9332,228.68,228.63,0.03352622]
[1759425257334,3.07787503,228.68,228.63,7.15352622]
[1759425257543,3.07787503,228.68,228.63,0.03352622]
[1759425257733,3.07787503,228.68,228.64,7.12]
[1759425257937,17.23028601,228.69,228.64,7.12]
[1759425258138,13.29748601,228.69,228.63,7.15352622]
[1759425258339,108.12,228.71,228.63,7.15352622]
[1759425258641,3.07736973,228.7,228.63,7.15352622]
[1759425259042,7.01016973,228.7,228.63,7.15352622]
[1759425260537,16.12027204,228.7,228.63,3.96742622]
[1759425260744,35.71266572,228.8,228.67,7.12]
[1759425260943,3.07556661,228.79,228.67,7.12]
[1759425261145,3.9316,228.76,228.67,7.12]
[1759425262243,3.07556661,228.78,228.67,7.12]
[1759425262551,3.07556661,228.78,228.69,0.02904961]
[1759425263349,3.07242564,228.78,228.69,7.14904961]
[1759425263551,7.00382564,228.78,228.69,7.14904961]
[1759425264046,3.9318,228.76,228.69,7.14904961]
[1759425264650,3.9319,228.75,228.69,7.14904961]
[1759425264849,3.07242564,228.78,228.69,7.14904961]
[1759425265557,3.07242564,228.78,228.7,7.62]
[1759425265558,3.932,228.74,228.7,7.62]
[1759425267459,3.932,228.74,228.69,7.64904961]
[1759425267855,3.932,228.74,228.7,7.62]
[1759425269354,108.08,228.76,228.69,7.64904961]
[1759425270163,3.9318,228.76,228.69,7.64904961]
[1759425270665,3.06777189,228.77,228.69,7.64904961]
[1759425270856,3.9319,228.75,228.69,7.64904961]
[1759425271654,3.06777189,228.77,228.69,7.64904961]
[1759425271655,3.9321,228.74,228.69,7.64904961]
[1759425271855,3.06777189,228.77,228.69,0.02904961]
[1759425272162,108.06,228.76,228.69,0.02904961]
[1759425272358,3.9323,228.73,228.69,0.02904961]
[1759425272559,108.06,228.76,228.7,7.76]
[1759425273162,2.84932265,228.8,228.7,7.76]
[1759425273357,3.9316,228.77,228.7,7.76]
[1759425274466,3.06792956,228.78,228.7,7.76]
[1759425275067,3.06792956,228.78,228.71,0.03124283]
[1759425275261,3.9315,228.77,228.71,0.03124283]
[1759425275560,3.06792956,228.78,228.71,0.03124283]
[1759425275765,3.06792956,228.78,228.72,7.76]
[1759425276167,6.99932956,228.78,228.72,7.76]
[1759425276666,3.06792956,228.78,228.72,7.76]
[1759425276856,3.06792956,228.78,228.72,13.04]
[1759425277768,111.10792956,228.78,228.72,13.04]
[1759425277964,6.99952956,228.77,228.72,13.04]
[1759425278268,3.06792956,228.77,228.72,13.04]
[1759425278458,3.06792956,228.77,228.73,7.76]
[1759425278664,108.04,228.77,228.73,7.76]
[1759425279663,12.79126248,228.79,228.72,13.04]
[1759425279968,392.6181,228.92,228.72,5.28]
[1759425279969,3.06861844,228.78,228.72,5.28]
[1759425280168,5.91794109,228.79,228.72,5.28]
[1759425280369,5.91794109,228.79,228.72,13.04]
[1759425280662,108.04,228.78,228.72,13.04]
[1759425280863,3.06861844,228.77,228.73,7.76]
[1759425281060,111.10861844,228.77,228.73,7.76]
[1759425281264,3.07076897,228.76,228.72,5.28]
[1759425281460,3.07076897,228.76,228.73,7.76]
[1759425282068,13.22848216,228.8,228.72,5.28]
[1759425282267,96.53071826,228.79,228.73,7.76]
[1759425282468,3.07071826,228.78,228.73,7.76]
[1759425282667,61.42,228.79,228.73,7.76]
[1759425282869,3.07071826,228.78,228.72,5.28]
[1759425283272,3.07071826,228.78,228.72,13.04]
[1759425283975,3.07071826,228.78,228.73,0.02948533]
[1759425284365,3.07071826,228.77,228.73,0.02948533]
[1759425284569,3.07071826,228.78,228.74,7.76]
[1759425284871,3.07071826,228.77,228.74,7.76]
[1759425285070,111.9512,228.79,228.74,7.76]
[1759425285071,3.07071826,228.78,228.74,7.76]
[1759425285271,3.07071826,228.77,228.74,7.76]
[1759425285468,3.07071826,228.78,228.74,7.76]
[1759425285668,3.07071826,228.78,228.73,0.02948533]
[1759425286073,3.07071826,228.78,228.74,7.76]
[1759425286967,3.07071826,228.77,228.73,0.02948533]
[1759425287164,3.07071826,228.76,228.73,0.02948533]
[1759425287367,5.92004091,228.75,228.73,0.02948533]
[1759425287569,111.09071826,228.74,228.73,0.02948533]
[1759425287771,115.02271826,228.74,228.72,5.23894643]
[1759425287973,3.07071826,228.73,228.72,5.23894643]
[1759425288277,111.07071826,228.73,228.72,5.23894643]
[1759425294374,112.8920026,228.73,228.72,5.23894643]
[1759425294979,111.07071826,228.73,228.72,5.23894643]
[1759425296280,3.07071826,228.73,228.72,12.99894643]
[1759425296476,59.89071826,228.73,228.72,12.99894643]
[1759425297380,59.89071826,228.73,228.72,5.23894643]
[1759425298978,63.82281826,228.73,228.72,5.23894643]
[1759425300475,59.89071826,228.73,228.72,5.23894643]
[1759425300681,111.07071826,228.73,228.72,5.23894643]
[1759425301683,3.07071826,228.73,228.72,5.23894643]
[1759425301881,102.91071826,228.73,228.72,5.23894643]
[1759425302378,105.1720026,228.73,228.72,4.643e-05]
[1759425302680,112.8720026,228.73,228.72,4.643e-05]
[1759425302881,3.07071826,228.73,228.72,4.643e-05]
[1759425303081,112.8720026,228.73,228.72,4.643e-05]
[1759425304783,3.07071826,228.73,228.72,7.84004643]
[1759425305582,0.03037214,228.77,228.72,8.28004643]
[1759425305883,0.03037214,228.77,228.76,7.84]
[1759425306780,4.85788949,228.87,228.77,7.84]
[1759425306974,4.85788949,228.91,228.8,7.84]
[1759425307177,17.64656695,228.91,228.8,7.84]
[1759425307377,6.67917383,228.92,228.8,7.84]
[1759425307578,3.9292,228.91,228.81,3.9306]
[1759425308082,8.78708949,228.91,228.81,3.9306]
[1759425308281,3.9292,228.91,228.81,3.9306]
[1759425308481,3.9292,228.91,228.84,0.02997608]
[1759425308682,3.9294,228.89,228.84,0.02997608]
[1759425311080,1.82128434,228.89,228.84,0.02997608]
[1759425311279,1.82128434,228.87,228.84,0.02997608]
[1759425312084,3.9301,228.85,228.84,0.02997608]
[1759425312584,3.9297,228.87,228.84,0.02997608]
[1759425312781,109.78128434,228.88,228.84,0.02997608]
[1759425313376,3.9301,228.85,228.84,0.02997608]
[1759425314087,107.96,228.87,228.84,0.02997608]
[1759425314585,107.96,228.87,228.76,1.82128434]
[1759425314586,107.99261026,228.87,228.76,1.82128434]
[1759425314781,62.95788434,228.85,228.75,7.84]
[1759425314981,3.9306,228.82,228.75,7.84]
[1759425315176,108.0,228.81,228.75,7.84]
[1759425315782,108.0,228.81,228.71,1.82128434]
[1759425316382,0.02858456,228.8,228.71,1.82128434]
[1759425316892,3.9315,228.77,228.7,7.84]
[1759425317080,108.0,228.76,228.7,7.84]
[1759425317585,108.0,228.76,228.69,7.84]
[1759425317786,108.0,228.76,228.7,1.82128434]
[1759425317982,4.85788949,228.84,228.7,1.82128434]
[1759425318291,102.19902358,228.83,228.73,1.82128434]
[1759425318593,3.931,228.8,228.73,1.82128434]
[1759425318787,0.03013019,228.75,228.71,7.84]
[1759425319784,0.03013019,228.75,228.69,1.82128434]
[1759425321588,0.03013019,228.75,228.67,10.38]
[1759425321589,0.03013019,228.75,228.72,1.82128434]
[1759425321788,0.03013019,228.75,228.73,7.84]
[1759425322387,0.03013019,228.75,228.72,1.82128434]
[1759425322888,0.03013019,228.75,228.73,7.84]
[1759425323088,0.03013019,228.75,228.72,1.82128434]
[1759425323288,0.03013019,228.75,228.73,7.84]
[1759425324489,0.03013019,228.75,228.71,1.82128434]
[1759425324694,0.03013019,228.75,228.72,7.16]
[1759425324992,0.03013019,228.75,228.71,1.82128434]
[1759425327094,0.03013019,228.75,228.72,7.16]
[1759425327292,0.03013019,228.75,228.71,1.82128434]
[1759425327696,0.03013019,228.75,228.72,7.16]
[1759425327897,0.03013019,228.75,228.71,1.82128434]
[1759425328101,0.03013019,228.75,228.72,7.16]
[1759425328710,0.03013019,228.75,228.71,5.75368434]
[1759425329103,0.03013019,228.75,228.72,7.16]
[1759425329605,0.03013019,228.75,228.69,1.82128434]
[1759425329807,3.03730317,228.74,228.68,7.16]
[1759425330001,3.03730317,228.73,228.67,2.54]
[1759425330201,3.9325,228.71,228.67,2.54]
[1759425330798,6.96980317,228.71,228.67,2.54]
[1759425331001,3.9325,228.71,228.67,2.54]
[1759425331504,3.03730317,228.72,228.67,2.54]
[1759425331710,111.03730317,228.73,228.67,2.54]
[1759425331905,3.03730317,228.72,228.67,2.54]
[1759425332114,3.9325,228.72,228.67,2.54]
[1759425332314,6.96980317,228.72,228.67,10.17]
[1759425332813,3.9325,228.72,228.67,10.17]
[1759425333014,6.96980317,228.72,228.67,10.17]
[1759425333214,3.9325,228.72,228.67,10.17]
[1759425333411,3.9326,228.71,228.67,10.17]
[1759425333613,3.03730317,228.72,228.67,10.17]
[1759425333614,3.03730317,228.72,228.67,2.54]
[1759425334117,3.9325,228.71,228.67,2.54]
[1759425334413,3.9325,228.71,228.67,10.17]
[1759425335216,3.9325,228.71,228.68,7.63]
[1759425335611,3.9325,228.71,228.67,2.54]
[1759425335914,3.03730317,228.72,228.68,7.63]
[1759425336113,3.932,228.74,228.68,7.63]
[1759425336114,3.03730317,228.74,228.68,7.63]
[1759425336512,3.03730317,228.73,228.67,2.54]
[1759425336810,3.03730317,228.72,228.67,2.54]
[1759425337011,3.9326,228.71,228.67,2.54]
[1759425337614,6.96990317,228.71,228.67,2.54]
[1759425337915,3.9326,228.71,228.67,2.54]
[1759425338316,111.9126,228.71,228.68,7.63]
[1759425338613,3.9321,228.74,228.68,7.63]
[1759425338917,111.01691307,228.73,228.68,7.63]
[1759425339108,3.03691307,228.72,228.67,2.54]
[1759425339314,3.03691307,228.72,228.68,7.63]
[1759425340512,6.96941307,228.72,228.68,7.63]
[1759425340708,6.96941307,228.72,228.66,7.63]
[1759425341616,3.03691307,228.72,228.66,7.63]
[1759425341810,111.94203019,228.75,228.69,7.63]
[1759425342012,3.03610437,228.74,228.69,7.63]
[1759425342316,3.03610437,228.74,228.68,9.45128434]
[1759425342724,107.98,228.75,228.68,7.63]
[1759425342921,107.98,228.75,228.69,1.82128434]
[1759425343117,107.98,228.75,228.7,7.63]
[1759425343424,0.02860178,228.73,228.71,7.63]
[1759425343621,0.02860178,228.73,228.7,2.54]
[1759425343921,0.02860178,228.73,228.71,7.63]
[1759425345222,0.02860178,228.73,228.7,2.54]
[1759425345617,0.02860178,228.73,228.7,10.17]
[1759425346115,0.02860178,228.73,228.7,2.54]
[1759425346323,0.02860178,228.73,228.5,244.9064]
[1759425346324,1.82128434,228.71,228.56,10.05928266]
[1759425346621,4.85738777,228.71,228.6,1.82128434]
[1759425346818,3.03610343,228.7,228.6,1.82128434]
[1759425347018,107.98,228.69,228.6,1.82128434]
[1759425347219,3.03610343,228.68,228.6,1.82128434]
[1759425347418,3.9343,228.61,228.52,3.9356]
[1759425348024,3.9343,228.61,228.52,1.82128434]
[1759425348325,107.98,228.62,228.53,7.63]
[1759425348713,107.98,228.62,228.55,1.82128434]
[1759425348913,108.0,228.64,228.58,1.82128434]
[1759425349220,108.0,228.64,228.58,9.45128434]
[1759425349424,3.9339,228.63,228.56,7.63]
[1759425349726,0.03235273,228.6,228.56,7.63]
[1759425350419,0.03235273,228.6,228.54,7.63]
[1759425350920,0.03235273,228.6,228.56,1.82128434]
[1759425351525,0.03235273,228.6,228.57,7.63]
[1759425351825,13.12466455,228.61,228.57,7.63]
[1759425352124,3.934,228.62,228.57,7.63]
[1759425352520,0.02975526,228.61,228.57,7.63]
[1759425353626,0.02975526,228.61,228.55,7.63]
[1759425354420,3.96415526,228.61,228.55,7.63]
[1759425354720,0.02975526,228.61,228.55,7.63]
[1759425355622,3.9346,228.59,228.54,7.63]
[1759425355824,3.9346,228.59,228.53,9.45128434]
[1759425356028,1.82128434,228.6,228.53,7.63]
[1759425356227,3.9351,228.57,228.53,7.63]
[1759425356425,13.15384361,228.61,228.49,7.63]
[1759425356625,13.15384361,228.61,228.51,7.63]
[1759425356822,108.02,228.6,228.51,7.63]
[1759425357326,108.02,228.6,228.53,7.63]
[1759425358023,0.03279867,228.58,228.52,3.9357]
[1759425358228,0.03279867,228.58,228.53,7.63]
[1759425358418,0.03279867,228.58,228.52,3.9357]
[1759425358828,0.03279867,228.58,228.49,2.84940828]
[1759425358829,0.03279867,228.58,228.5,7.63]
[1759425362429,3.96769867,228.58,228.5,7.63]
[1759425363929,0.03279867,228.58,228.5,7.63]
[1759425364531,0.03279867,228.58,228.55,2.84940828]
[1759425365125,0.03279867,228.58,228.56,7.53]
[1759425365633,0.03279867,228.58,228.53,7.53]
[1759425365833,0.03279867,228.58,228.52,2.84940828]
[1759425366137,0.03279867,228.58,228.48,7.53]
[1759425366736,108.07279867,228.58,228.48,7.53]
[1759425367038,108.04,228.58,228.48,7.53]
[1759425367232,142.52454982,228.58,228.48,7.53]
[1759425367835,0.03329502,228.55,228.48,7.53]
[1759425369225,3.96859502,228.55,228.48,7.53]
[1759425370327,3.9355,228.54,228.48,7.53]
[1759425371337,0.03329502,228.55,228.45,7.53]
[1759425371640,0.03329502,228.55,228.44,2.84940828]
[1759425371641,0.03329502,228.55,228.5,2.84940828]
[1759425371939,0.03329502,228.55,228.51,7.53]
[1759425372334,0.03329502,228.55,228.54,7.53]
[1759425373230,3.9337,228.65,228.56,2.84940828]
[1759425373434,108.04,228.65,228.57,7.53]
[1759425373837,121.29027035,228.65,228.57,7.53]
[1759425374639,3.9338,228.64,228.57,7.53]
[1759425374845,121.29027035,228.65,228.57,7.53]
[1759425375043,155.80626107,228.65,228.59,0.03353628]
[1759425375245,3.03306748,228.64,228.59,0.03353628]
[1759425375544,155.80626107,228.65,228.59,0.03353628]
[1759425375743,47.76626107,228.65,228.59,0.03353628]
[1759425375944,108.04,228.65,228.59,0.03353628]
[1759425376146,121.41612629,228.65,228.59,0.03353628]
[1759425379036,3.934,228.63,228.59,0.03353628]